Cogmind - Beta 17 @@@ ROGUE MODE // 2026.08.10 @ 17:22:44 Player: Cinder Result: Destroyed by P-70 Sage with High-powered Shock Rifle Performance ------------- Evolutions (5) 2500 Regions Visited (7) 1400 Robots Destroyed (115) 575 Value Destroyed (4450) 4450 Prototype IDs (13) 260 Alien Tech Used (0) 0 Bonus (1405) 1405 TOTAL SCORE: 10590 Bonus ------- High Alert Combat Kills 605 Registered with UFD 300 Met Optimus in HQ 500 Cogmind --------- Core Integrity 0/1000 Matter 6/300 Energy 90/100 System Corruption 13% Temperature Cool (0) Movement Core (50) Location -5/Factory Parts ------- > --- POWER (1) -------- (None) > --- PROPULSION (6) --- (None) > --- UTILITY (7) ------ Advanced Heat Sink Enhanced Optical Array Improved Signal Interpreter > --- WEAPON (3) ------- (None) > --- INVENTORY (5) ---- Heavy Ion Engine Advanced Heat Sink High-capacity Matter Pod (0) Point Defense System Advanced Assault Cannon Peak State ------------ > --- POWER ------------ F-cell Engine > --- PROPULSION ------- Flexi-carbon Leg Multireflex Exoskeleton Multireflex Exoskeleton > --- UTILITY ---------- Huge Storage Unit Enhanced Optical Array Advanced Sensor Array Improved Signal Interpreter Hardened Light Armor Plating Hardened Medium Armor Plating > --- WEAPON ----------- Tesla Rifle Hypervelocity Coil Gun Gauss Cannon > --- INVENTORY -------- Heavy Ion Engine F-cell Engine Cold Fusion Reactor Medium Treads Heavy Treads Wheel Wheel Advanced Heat Sink Advanced Heat Sink Huge Storage Unit High-capacity Matter Pod Seismic Detector Hardened Medium Armor Plating Improved Focal Shield Point Defense System Advanced System Shield Tesla Rifle Variable Charge Gun Heavy Phase Cannon Enhanced Gauss Cannon [Rating: 79] Favorites ----------- Power Cooled Ion Engine Engine Cooled Ion Engine Power Core Light Nuclear Core Reactor Cold Fusion Reactor Propulsion Armored Wheel Treads Heavy Treads Leg Multireflex Exoskeleton Wheel Armored Wheel Utility Huge Storage Unit Device Advanced Heat Sink Storage Huge Storage Unit Processor Enhanced Optical Array Protection Hardened Medium Armor Plating Weapon Advanced Assault Cannon Energy Gun Heavy Laser Energy Cannon Phase Cannon Ballistic Gun Heavy Assault Rifle Ballistic Cannon Advanced Assault Cannon Launcher Rocket Launcher Build | -11 -10 -9 -9 -9 -9 -6 -5 ------- Run | Yrd Mat Mat Sto Rec Scr Fac Fac Slots Evolved 10 | . . 2 . . . 6 2 Power . | . . . . . . . . Propulsion 4 | . . 1 . . . 1 2 Utility 5 | . . 1 . . . 4 . Weapon 1 | . . . . . . 1 . Parts Attached 114 | 6 3 15 3 . 6 55 26 Power 9 | 1 . 2 2 . . 2 2 Engine 7 | 1 . 1 2 . . 2 1 Core 1 | . . 1 . . . . . Reactor 1 | . . . . . . . 1 Propulsion 30 | 2 1 4 . . 2 16 5 Treads 2 | . . . . . . . 2 Leg 9 | . . . . . . 7 2 Wheel 19 | 2 1 4 . . 2 9 1 Hover . | . . . . . . . . Flight . | . . . . . . . . Utility 39 | 1 1 4 . . 2 19 12 Device 16 | . . . . . . 9 7 Storage 4 | 1 1 . . . . 2 . Processor 5 | . . 2 . . . 2 1 Hackware . | . . . . . . . . Protection 14 | . . 2 . . 2 6 4 Artifact . | . . . . . . . . Weapon 36 | 2 1 5 1 . 2 18 7 Energy Gun 8 | . . . . . . 5 3 Energy Cannon 2 | . . . . . . 1 1 Ballistic Gun 13 | 2 1 4 . . 1 4 1 Ballistic Cannon 11 | . . . 1 . 1 7 2 Launcher 2 | . . 1 . . . 1 . Special Weapon . | . . . . . . . . Impact Weapon . | . . . . . . . . Slashing Weapon . | . . . . . . . . Piercing Weapon . | . . . . . . . . Special Melee Weapon . | . . . . . . . . Unidentified Prototypes 6 | . . . 2 . . 2 2 Corrupted Parts 1 | . . . . . . 1 . System Corruption 8 | . . . . . . 8 . Parts Lost 81 | . 3 4 . . . 48 26 Power 5 | . 1 . . . . 2 2 Propulsion 25 | . 1 1 . . . 15 8 Utility 22 | . . 1 . . . 13 8 Weapon 29 | . 1 2 . . . 18 8 Highest Loss Streak 18 | . 3 2 . . . 18 18 To Critical Strikes . | . . . . . . . . Average Backups 17 | 1 7 17 23 24 23 14 18 Power 2 | . 1 1 3 3 2 2 2 Propulsion 3 | . 3 2 4 4 4 2 3 Utility 7 | . 1 6 9 10 10 7 7 Weapon 4 | . 1 5 6 7 6 3 4 Tool/Special . | . . . . . . . . Unused Backups 27 | . . 5 2 . 10 . 10 Power 8 | . . 1 2 . 1 . 4 Propulsion 3 | . . . . . 2 . 1 Utility 13 | . . 2 . . 6 . 5 Weapon 3 | . . 2 . . 1 . . Tool/Special . | . . . . . . . . Average Slot Usage (%) 84 | . 91 91 100 100 99 74 75 Engine 6 | . 11 4 5 11 11 5 3 Leg 6 | . . . . . . 4 18 Wheel 18 | . 27 32 33 33 33 13 . Device 6 | . . . . . . 11 12 Storage 8 | . 23 11 11 11 11 6 5 Processor 8 | . . 12 11 11 11 7 8 Protection 7 | . . 5 11 11 11 5 10 Energy Gun 1 | . . . . . . 4 . Ballistic Gun 9 | . 28 21 18 22 14 2 . Ballistic Cannon 6 | . . . 3 . 7 8 9 Peak Build Rating 79 | 6 8 18 18 18 22 66 79 Average Rating 38 | 4 7 15 17 18 20 42 70 On Entrance 17 | . 6 7 18 18 18 22 50 Avg Prop Armor Cover (%) . | . . . . . . . . Naked Turns . | . . . . . . . . Heaviest Build 130 | 13 93 94 98 97 103 130 129 Greatest Support 105 | 20 22 38 38 38 38 72 105 Greatest Overweight (x) 10 | . 4 3 2 2 2 10 8 Average Overweight (x) 1 | . 2 2 2 2 2 2 1 Largest Inventory Capacity 25 | 8 25 25 25 25 25 25 25 Average Capacity 24 | 7 21 25 25 25 25 24 25 Most Carried 25 | 2 9 24 24 24 25 25 23 Average Carried 18 | 1 7 17 22 24 24 16 19 Final Capacity 25 | 8 25 25 25 25 25 25 5 Final Carried 25 | 2 8 22 24 24 25 15 5 Scrap Suit Usage (%) 7 | . . . . . . 30 . Parts Cannibalized 7 | . . . . . . 7 . Class Distribution -------------------- 46% | Mutant 16% | Scavenger-Tank 9% | Skirmisher 9% | Scavenger-Mutant 8% | Tank 5% | Scavenger-Skirmisher 3% | Derelict-Tank Dominant Class ---------------- Mutant | -10/Materials Mutant | -9/Materials Scavenger-Mutant | -9/Storage Scavenger-Mutant | -9/Recycling Mutant | -9/Scraptown Mutant | -6/Factory Scavenger-Tank | -5/Factory Resources | -11 -10 -9 -9 -9 -9 -6 -5 ----------- Run | Yrd Mat Mat Sto Rec Scr Fac Fac Matter Collected 4095 | 187 70 760 128 . 70 2089 791 Remotely 1260 | . . . . . . 1260 . Salvage Created 3945 | . 63 821 . . . 2231 830 Parts 215 | . 10 52 . . . 111 42 Haulers Intercepted 2 | . . . . . . 1 1 Recyclers Shooed 3 | . . 2 . . . 1 . Parts Field Recycled . | . . . . . . . . Retrieved Matter . | . . . . . . . . Parts Self-Destructed . | . . . . . . . . Prevented . | . . . . . . . . Parts Restored . | . . . . . . . . Kills | -11 -10 -9 -9 -9 -9 -6 -5 ------- Run | Yrd Mat Mat Sto Rec Scr Fac Fac Combat Hostiles Destroyed 91 | . 7 16 . . . 46 22 Guns 41 | . 2 15 . . . 20 4 Cannons 36 | . . . . . . 21 15 AOE 13 | . 5 1 . . . 4 3 Classes Destroyed 14 | . 2 4 . . . 7 1 Worker 6 | . . 2 . . . 3 1 Builder 7 | . . . . . . 5 2 Tunneler 2 | . . . . . . 2 . Hauler 2 | . . . . . . 1 1 Recycler 3 | . . 2 . . . 1 . Watcher 4 | . . 2 . . . 1 1 Swarmer 22 | . 6 3 . . . 7 6 Grunt 45 | . 1 8 . . . 28 8 Brawler 2 | . . . . . . 1 1 Sentry 8 | . . 5 . . . 2 1 Specialist 4 | . . . . . . 4 . Hunter 1 | . . . . . . . 1 Programmer 8 | . . . . . . 3 5 Heavy 1 | . . . . . . 1 . Best Kill Streak 11 | . 7 4 . . . 11 5 Combat Bots Only 8 | . 7 3 . . . 8 5 Max Kills in Single Turn 5 | . 5 3 . . . 4 3 Gunslinging . | . . . . . . . . Exploded 5 | . 5 1 . . . 2 2 Melee . | . . . . . . . . Uniques/NPCs Destroyed . | . . . . . . . . Combat | -11 -10 -9 -9 -9 -9 -6 -5 -------- Run | Yrd Mat Mat Sto Rec Scr Fac Fac Hostile Shots Fired 1071 | . 49 90 . . . 539 393 Missed 253 | . 10 19 . . . 134 90 Hits 818 | . 39 71 . . . 405 303 Melee 4 | . . . . . . 4 . Projectile 814 | . 39 71 . . . 401 303 AOE 2 | . . . . . . 1 1 Critical Strikes 34 | . 1 2 . . . 19 12 Damage Taken 14426 | . 441 900 . . . 7363 5722 Core 2091 | . 140 151 . . . 799 1001 Absorbed by Shields . | . . . . . . . . Reduced by Siege Mode 148 | . . . . . . . 148 Regen/Repaired (Parts) 187 | . . . . . . 62 125 Core Remaining (%) 53 | 100 44 . . . 62 6 . Volleys Fired 322 | . 11 77 6 . . 143 85 Largest 3 | . 2 2 1 . . 3 3 Hottest 225 | . 40 56 33 . . 166 225 Shots Fired 706 | . 22 154 6 . . 374 150 Gun 363 | . 22 153 . . . 168 20 Cannon 338 | . . . 6 . . 202 130 Launcher 5 | . . 1 . . . 4 . Special . | . . . . . . . . Kinetic 572 | . 22 153 6 . . 265 126 Thermal 118 | . . . . . . 105 13 Explosive 5 | . . 1 . . . 4 . Electromagnetic 11 | . . . . . . . 11 Robot Hit Streak 19 | . 6 19 . . . 11 11 Robot Miss Streak 6 | . 4 3 . . . 4 6 Penetration Max . | . . . . . . . . Secondary Targets 7 | . 2 2 . . . 3 . Max Gunslinging Chain 1 | . 1 1 . . . 1 . Shots Hit Robots 438 | . 11 113 . . . 230 84 Core Hits 223 | . 6 48 . . . 131 38 Critical Kills . | . . . . . . . . Critical Parts Destroyed 5 | . . 2 . . . 2 1 Critical Strikes 22 | . . 2 . . . 14 6 Burn 3 | . . . . . . 3 . Destroy 5 | . . 2 . . . 2 1 Blast 14 | . . . . . . 9 5 Melee Attacks . | . . . . . . . . Impact . | . . . . . . . . Slashing . | . . . . . . . . Piercing . | . . . . . . . . Sneak Attacks . | . . . . . . . . Combat Hostiles . | . . . . . . . . Follow-up Attacks . | . . . . . . . . Damage Inflicted 12445 | . 644 1371 . . . 6466 3964 Guns 4208 | . 115 1294 . . . 2425 374 Cannons 5799 | . . . . . . 2986 2813 Explosions 2392 | . 529 77 . . . 1009 777 Melee . | . . . . . . . . Ramming 46 | . . . . . . 46 . Kinetic 7822 | . 115 1294 . . . 3935 2478 Thermal 2459 | . . . . . . 1476 983 Explosive 1734 | . 529 77 . . . 1009 119 Electromagnetic 384 | . . . . . . . 384 Impact . | . . . . . . . . Slashing . | . . . . . . . . Piercing . | . . . . . . . . Highest Corruption 17 | . 2 . . . . 17 16 Average Corruption 7 | . 2 . . . . 6 9 Corruption Purged 7 | . . . . . . . 7 Corruption Blocked . | . . . . . . . . Effects 77 | . . . . . . 46 31 Message Errors 14 | . . . . . . 5 9 Matter Fused 13 | . . . . . . 7 6 Heat Flow Errors 9 | . . . . . . 5 4 Energy Discharges 13 | . . . . . . 11 2 Parts Rejected 3 | . . . . . . 2 1 Parts Fused 2 | . . . . . . 1 1 Data Loss (minor) 7 | . . . . . . 4 3 Data Loss (major) 5 | . . . . . . 2 3 Misfires 5 | . . . . . . 4 1 Alerts 2 | . . . . . . 2 . Weapon Failures 4 | . . . . . . 3 1 Overload Shots 2 | . . . . . . . 2 Overflow Damage 466 | . 134 . . . . 90 242 Projectiles 253 | . . . . . . 18 235 Explosions 211 | . 134 . . . . 70 7 Melee 2 | . . . . . . 2 . Knockbacks 45 | . . . . . . 24 21 Impact 1 | . . . . . . 1 . Kinetic 39 | . . . . . . 19 20 Secondary 5 | . . . . . . 4 1 Self-Inflicted Damage 366 | . 98 . . . . . 268 Shots 4 | . 1 . . . . . 3 Rammed . | . . . . . . . . Targets Rammed 4 | . . . . . . 3 1 Kicked 4 | . . . . . . 3 1 Crushed . | . . . . . . . . Highest Temperature 387 | . 6 16 . . . 387 319 Average Temperature 71 | . 6 4 . . . 76 78 Received Heat Transfer 3474 | . 30 408 . . . 2601 435 Effects 6 | . . . . . . 1 5 Interference 4 | . . . . . . . 4 Matter Decay 1 | . . . . . . 1 . Short Circuit 1 | . . . . . . . 1 Siege Activations 1 | . . . . . . . 1 Total Turns 36 | . . . . . . . 36 Longest Duration 36 | . . . . . . . 36 Martial Activations . | . . . . . . . . Shielding Activations . | . . . . . . . . Robots Disrupted . | . . . . . . . . Combat Hostiles . | . . . . . . . . Robots Corrupted 1 | . . . . . . 1 . Combat Hostiles 1 | . . . . . . 1 . Parts Fried 3 | . . . . . . 2 1 Impact Corruptions 1 | . . . . . . 1 . Robots Melted . | . . . . . . . . Combat Hostiles . | . . . . . . . . Parts Melted 4 | . . . . . . 4 . Heat Transferred 3907 | . . . . . . 3087 820 Parts Sabotaged . | . . . . . . . . Parts Stolen . | . . . . . . . . Parts Stripped . | . . . . . . . . Power Chain Reactions . | . . . . . . . . Alert | -11 -10 -9 -9 -9 -9 -6 -5 ------- Run | Yrd Mat Mat Sto Rec Scr Fac Fac Maximum Alert Level 3 | . 1 . . . . 2 3 Low Security (%) 38 | 100 95 100 100 100 . 24 . Level 1 11 | . 4 . . . . 22 9 Level 2 41 | . . . . . . 52 66 Level 3 8 | . . . . . . . 24 Level 4 . | . . . . . . . . Level 5 . | . . . . . . . . High Security . | . . . . . . . . Max Security . | . . . . . . . . Peak Influence 782 | . 207 179 59 . . 682 782 Initial 333 | . . 72 59 . . . 333 Average 331 | . 44 76 29 . . 350 543 Influence Increases 3666 | . 262 497 15 . . 1683 1209 Destroy 0b10 Robot/C 1820 | . 140 320 . . . 920 440 Destroy 0b10 Robot/NC 120 | . . 30 . . . 65 25 Destroy Leader 392 | . 30 104 . . . 184 74 Trap Triggered on 0b10 10 | . . . . . . 10 . Successful Hack 46 | . 15 19 . . . 12 . Disable Machine 360 | . 30 15 15 . . 15 285 Anti-Garrison Action 200 | . . . . . . 200 . Destroy Structure 328 | . 17 9 . . . 52 250 Partial Spotted 15 | . . . . . . . 15 Lose Combat Pursuer 375 | . 30 . . . . 225 120 Influence Decreases 2967 | . 89 527 158 . . 1001 1192 Entered New Map 534 | . . 101 84 . . . 349 Time Decay 1623 | . 59 386 74 . . 521 583 Lost Part 810 | . 30 40 . . . 480 260 Squads Dispatched 32 | . 1 4 1 . . 16 10 Investigation 8 | . . 2 1 . . 2 3 Extermination 6 | . . . . . . 3 3 Reinforcement 14 | . 1 2 . . . 9 2 Assault 3 | . . . . . . 1 2 Garrison 1 | . . . . . . 1 . Intercept . | . . . . . . . . Searches Triggered . | . . . . . . . . Construction Impeded 1 | . . . . . . 1 . Haulers Reinforced 2 | . . . . . . 2 . Active Scanning Responses . | . . . . . . . . Cargo Convoy Interrupts . | . . . . . . . . Stealth | -11 -10 -9 -9 -9 -9 -6 -5 --------- Run | Yrd Mat Mat Sto Rec Scr Fac Fac Distress Signals 11 | . . 3 . . . 8 . Communications Jammed . | . . . . . . . . Distress Signals . | . . . . . . . . Times Spotted 155 | . 14 25 . . . 72 44 Peak Tracking Total 14 | . 7 5 . . . 14 10 Tactical Retreats 17 | . 1 . . . . 11 5 Traps | -11 -10 -9 -9 -9 -9 -6 -5 ------- Run | Yrd Mat Mat Sto Rec Scr Fac Fac Traps Triggered 5 | . 2 2 . . . . 1 Indirectly . | . . . . . . . . Trap Hack Attempts . | . . . . . . . . Triggered . | . . . . . . . . Disarmed . | . . . . . . . . Reprogrammed . | . . . . . . . . Reused 1 | . . . . . . 1 . Traps Extracted . | . . . . . . . . Installed 1 | . . . . . . 1 . Triggered 1 | . . . . . . 1 . Most Traps Carried 1 | . . . . . 1 1 . Machines | -11 -10 -9 -9 -9 -9 -6 -5 ---------- Run | Yrd Mat Mat Sto Rec Scr Fac Fac Machines Disabled 24 | . 2 1 1 . . 1 19 Max in Single Turn 8 | . 2 1 1 . . 1 8 Garrison Access 1 | . . . . . . 1 . Machines Repaired . | . . . . . . . . Machines Dismantled . | . . . . . . . . Machines Sabotaged . | . . . . . . . . Overloaded Fab Kills . | . . . . . . . . Hacking | -11 -10 -9 -9 -9 -9 -6 -5 --------- Run | Yrd Mat Mat Sto Rec Scr Fac Fac Machines Accessed 22 | . 3 4 3 . 3 3 6 Terminals 12 | . 3 3 3 . . . 3 Fabricators . | . . . . . . . . Repair Stations 1 | . . . . . . . 1 Recycling Units 3 | . . . . . . 1 2 Scanalyzers 2 | . . 1 . . . 1 . Garrison Access 1 | . . . . . . 1 . Total Hacks 49 | . 10 11 6 . 7 7 8 Successful 27 | . 5 6 3 . 7 3 3 Failed 22 | . 5 5 3 . . 4 5 Catastrophic 6 | . 1 1 . . . 1 3 Database Lockouts . | . . . . . . . . Manual 31 | . 8 8 3 . . 4 8 Terminals 29 | . 10 8 6 . . . 5 Fabricators . | . . . . . . . . Repair Stations 1 | . . . . . . . 1 Recycling Units 4 | . . . . . . 2 2 Scanalyzers 6 | . . 3 . . . 3 . Garrison Access 2 | . . . . . . 2 . Terminal Hacks 13 | . 2 3 1 . 7 . . Record 6 | . . . . . 6 . . Part Schematic 1 | . 1 . . . . . . Robot Analysis 3 | . . 3 . . . . . Open Door 1 | . . . 1 . . . . Branch Access Points 1 | . 1 . . . . . . Proto ID Catalog 1 | . . . . . 1 . . Fabricator Hacks . | . . . . . . . . Repair Station Hacks . | . . . . . . . . Recycling Unit Hacks . | . . . . . . . . Scanalyzer 2 | . . 1 . . . 1 . Retrieve Study 2 | . . 1 . . . 1 . Garrison Access Hacks . | . . . . . . . . Unauthorized Hacks 12 | . 3 2 2 . . 2 3 Terminals 7 | . 3 2 2 . . . . Botnet 7 | . 3 2 2 . . . . Fabricators . | . . . . . . . . Repair Stations 1 | . . . . . . . 1 Patch 1 | . . . . . . . 1 Recycling Units 3 | . . . . . . 1 2 Fedlink 3 | . . . . . . 1 2 Scanalyzers . | . . . . . . . . Garrison Access 1 | . . . . . . 1 . Jam 1 | . . . . . . 1 . Data Cores Recovered . | . . . . . . . . Used . | . . . . . . . . Hacking Detections 11 | . 2 4 1 . . 1 3 Full Trace Events 2 | . . 1 1 . . . . Feedback Events . | . . . . . . . . Feedback Blocked . | . . . . . . . . Robot Schematics Acquired . | . . . . . . . . Robots Built . | . . . . . . . . Authchips . | . . . . . . . . Time . | . . . . . . . . Total Robot Build Rating . | . . . . . . . . Part Schematics Acquired 1 | . 1 . . . . . . Parts Built . | . . . . . . . . Authchips . | . . . . . . . . Time . | . . . . . . . . Total Part Build Rating . | . . . . . . . . Part Studies Acquired 2 | . . 1 . . . 1 . Parts Repaired . | . . . . . . . . Time . | . . . . . . . . Parts Recycled . | . . . . . . . . Recycled Matter . | . . . . . . . . Retrieved Matter . | . . . . . . . . Retrieved Components . | . . . . . . . . Parts Scanalyzed . | . . . . . . . . Part Schematics Acquired . | . . . . . . . . Parts Damaged . | . . . . . . . . Bothacking | -11 -10 -9 -9 -9 -9 -6 -5 ------------ Run | Yrd Mat Mat Sto Rec Scr Fac Fac Used RIF Installer . | . . . . . . . . Robots Hacked . | . . . . . . . . Non-combat . | . . . . . . . . Combat . | . . . . . . . . Robot Hacks Applied . | . . . . . . . . Relay Couplers Released 2 | . . . . . . 2 . Machine Destruction 2 | . . . . . . 2 . Fabnet Peak Effective % . | . . . . . . . . Robots Rewired . | . . . . . . . . Allies Hacked . | . . . . . . . . Hacks Repelled . | . . . . . . . . Allies | -11 -10 -9 -9 -9 -9 -6 -5 -------- Run | Yrd Mat Mat Sto Rec Scr Fac Fac Total Allies . | . . . . . . . . Largest Group . | . . . . . . . . Highest-Rated Group . | . . . . . . . . Highest-Rated Ally . | . . . . . . . . Initial UFD Resources 36 | . . . . . . 22 36 Total Orders . | . . . . . . . . Ally Attacks . | . . . . . . . . Total Damage . | . . . . . . . . Kills . | . . . . . . . . Allies Corrupted . | . . . . . . . . Allies Melted . | . . . . . . . . Intel | -11 -10 -9 -9 -9 -9 -6 -5 ------- Run | Yrd Mat Mat Sto Rec Scr Fac Fac Active Infowar (turns) 5765 | . . 810 172 45 1285 1649 1804 Optics 5765 | . . 810 172 45 1285 1649 1804 Sensors 610 | . . . . . . . 610 Structural 1510 | . . . . . . . 1510 Seismic 1314 | . . . . . . 474 840 Robot Analysis Total 3 | . . 3 . . . . . Derelict Logs Recovered . | . . . . . . . . Drone Launches . | . . . . . . . . Drone Recoveries . | . . . . . . . . Exploration | -11 -10 -9 -9 -9 -9 -6 -5 ------------- Run | Yrd Mat Mat Sto Rec Scr Fac Fac Turns Passed 6257 | 47 341 914 172 45 1285 1649 1804 Spaces Moved 3500 | 37 245 496 127 39 1078 692 786 Core 2 | 2 . . . . . . . Treads 3 | . . . . . . . 3 Legs 927 | . . . . . . 145 782 Wheels 2568 | 35 245 496 127 39 1078 547 1 Hover . | . . . . . . . . Flight . | . . . . . . . . Fastest Speed 50 | 50 80 110 116 116 116 95 160 Average Speed 135 | 78 116 115 116 116 116 138 183 Slowest Speed 260 | 80 140 125 116 116 116 260 250 Overloaded Moves . | . . . . . . . . Propulsion Burnouts . | . . . . . . . . Robots Hopped . | . . . . . . . . Potential Cave-ins . | . . . . . . . . Cave-ins Triggered . | . . . . . . . . Exploration Rate (%) 32 | 3 52 41 27 11 77 24 26 Regions Visited 7 Branch Regions 3 Pre-discovered Areas 1 | . . . . . . . 1 Known Exits Taken . | . . . . . . . . Unknown Exits Taken 7 | 1 1 1 1 1 1 1 . Scrap Searched 8 | . . . . . 8 . . Spaces Dug 7 | . . . . . . 6 1 Terrain Destroyed 199 | . 15 8 . . . 44 132 Melee . | . . . . . . . . Projectile 57 | . . . . . . 24 33 AOE 142 | . 15 8 . . . 20 99 Terrain Rammed . | . . . . . . . . Walls Destroyed . | . . . . . . . . Machines Disabled . | . . . . . . . . Actions | -11 -10 -9 -9 -9 -9 -6 -5 --------- Run | Yrd Mat Mat Sto Rec Scr Fac Fac Total 4388 | 51 281 695 146 38 1125 1078 974 Wait 259 | 7 14 70 . . 2 117 49 Move 3493 | 36 244 495 126 38 1077 691 786 Hop . | . . . . . . . . Pick Up 112 | 2 7 26 4 . 17 41 15 Fast Attach 30 | 6 2 5 2 . . 8 7 Attach 78 | . 1 7 . . 3 49 18 Detach 13 | . 1 1 2 . . 6 3 Swap 28 | . . 7 2 . 4 11 4 Drop 48 | . 1 7 4 . 22 8 6 Fire 322 | . 11 77 6 . . 143 85 Melee . | . . . . . . . . Ram . | . . . . . . . . Kick 4 | . . . . . . 3 1 Crush . | . . . . . . . . Escape Stasis . | . . . . . . . . Rewire . | . . . . . . . . Trap 1 | . . . . . . 1 . Miscellaneous . | . . . . . . . . Route ------- -11/Scrapyard -10/Materials (discovered 3 exits: *Mat / Min x2) -9/Materials (discovered 3 exits: [*Mat] / [*Min] / *Sto) -9/Storage -9/Recycling -9/Scraptown -6/Factory -5/Factory History --------- Turn | Location | Event 29 | -11/Scrapyard | Discovered new exit (range 14) 48 | -11/Scrapyard | Entered Materials 92 | -10/Materials | Identified exit to Mines 314 | -10/Materials | Core integrity fell below 50% 315 | -10/Materials | Build established: Mutant 334 | -10/Materials | Destroyed 7 combat bots 344 | -10/Materials | Lost 3 parts (1p1n1w) 355 | -10/Materials | Discovered new exit (range 16) 389 | -10/Materials | Entered another Materials area 389 | -9/Materials | Evolved 2 slots: Propulsion x1, Utility x1 765 | -9/Materials | Discovered new exit (range 4) 887 | -9/Materials | Discovered new exit (range 5) 1131 | -9/Materials | Discovered new exit (range 17) 1303 | -9/Materials | Entered Storage 1434 | -9/Storage | Build established: Scavenger-Mutant 1471 | -9/Storage | Used back door to open Recycling access 1471 | -9/Storage | Discovered new exit (range 4) 1475 | -9/Storage | Entered Recycling 1492 | -9/Recycling | Scanned before Scraplab entrance 1508 | -9/Recycling | Entered Scraplab 1517 | -9/Recycling | Discovered new exit (range 3) 1520 | -9/Recycling | Entered Scraptown 1741 | -9/Scraptown | Visited Fellowship of the Rings 1757 | -9/Scraptown | Visited TADAMA 1792 | -9/Scraptown | Visited Comm Corps 1829 | -9/Scraptown | Visited Awakened 1847 | -9/Scraptown | Visited Red Mages 1865 | -9/Scraptown | Visited Bundlers 1939 | -9/Scraptown | Visited Cave Peace 1961 | -9/Scraptown | Build established: Mutant 1982 | -9/Scraptown | Visited UFD Registry 1996 | -9/Scraptown | Registered with UFD as "Bulletdriver" 2163 | -9/Scraptown | Visited Derelict Rescue Squad 2212 | -9/Scraptown | Visited Science Testing Area 2233 | -9/Scraptown | Visited Research Penetration Think Tank 2260 | -9/Scraptown | Visited A0-MCA Data Center 2267 | -9/Scraptown | Given an A- rating by A0-MCA 2289 | -9/Scraptown | Visited Junk Repository 2320 | -9/Scraptown | Visited DA-N13 Charitable Foundation 2330 | -9/Scraptown | Found DCF Scrap (27 items) 2392 | -9/Scraptown | Visited Curators Association 2564 | -9/Scraptown | Visited Science Guys 2645 | -9/Scraptown | Found Scrap Suit 2649 | -9/Scraptown | Found Scrap Suit 2670 | -9/Scraptown | Discovered new exit (range 3) 2735 | -9/Scraptown | Met Optimus 2735 | -9/Scraptown | Accepted into 0bPrime 2805 | -9/Scraptown | Entered Factory 2805 | -6/Factory | Evolved 6 slots: Propulsion x1, Utility x4, Weapon x1 3288 | -6/Factory | Destroyed 8 combat bots 3291 | -6/Factory | Lost 18 parts (1p5n5u7w) 3330 | -6/Factory | Loaded intel: 8 recycling unit locations 3795 | -6/Factory | Core integrity fell below 50% 3891 | -6/Factory | Lost 7 parts (3n1u3w) 4109 | -6/Factory | Lost 6 parts (1p2n1u2w) 4112 | -6/Factory | Garrison activated, responded to threat 4205 | -6/Factory | First assault squad dispatched 4210 | -6/Factory | Core integrity fell below 20% 4297 | -6/Factory | Lost 6 parts (2n1u3w) 4395 | -6/Factory | Discovered new exit (range 20) 4454 | -6/Factory | System corruption reached 10% 4454 | -6/Factory | Entered another Factory area 4454 | -5/Factory | Evolved 2 slots: Propulsion x2 4792 | -5/Factory | Build established: Scavenger-Tank 5311 | -5/Factory | Lost 4 parts (2n2u) 5556 | -5/Factory | System corruption reached 10% 5625 | -5/Factory | Loaded intel: 8 recycling unit locations 5625 | -5/Factory | Learned location of Protoforge (-3) 5954 | -5/Factory | First assault squad dispatched 6102 | -5/Factory | Build established: Skirmisher 6227 | -5/Factory | Core integrity fell below 50% 6242 | -5/Factory | Core integrity fell below 20% 6258 | -5/Factory | Destroyed by P-70 Sage with High-powered Shock Rifle Last Messages --------------- 06237_ H-66 Slayer destroyed. 06237_ U-05 Engineer destroyed. 06237_ Nuclear Reactor explodes. 06237_ Slug penetrates H-66 Slayer. 06237_ Destroyed Hvy. Assault Rifle. 06237_ Penetrated by Slug. 06238_ Manufacturing Mainframe disabled. 06240_ Penetrated by Slug. 06245_ System corrupted: Substantial component data lost. 06245_ The unstable cave ceiling collapses. 06246_ Penetrated by Slug. 06247_ The unstable cave ceiling collapses. 06247_ Penetrated by Slug. 06249_ Enh. Gauss Cannon destroyed. 06252_ Penetrated by Slug. 06252_ Wheel+ destroyed. 06252_ Penetrated by Slug. 06254_ ALERT: Unidentified disturbance in Zone 8B, assault force dispatched. 06258_ Dropped Huge Storage Unit. Map ----- +----------------------------------------------------+ | ??????????????????? ??????????????????????????? | | ??????????????????? ??????????????????????????? | | ??????????????????# #??????????????????????????? | | ??????????????????# #??????????????????????????? | | ??????????????????# # ?????????????????????????? | | ??????????????????# # ???? ???????????????????? | | ??????????????????# # ???? #??????????????????? | | ??????????????????# # ??? #???#??????????????? | | ??????????????????# # ??? #?? #??????????????? | | ??????????????????# # ! #?? #??????????????? | | ??????????????????# # """ #? #??????????????? | | ??????????????????# # """ #? #??????????????? | | ????############### # """ # #??????????????? | | ????# ## # #p #??????????????? | | ????# """" """" ## #??????????????? | | ##### """" """" ## #??????????????? | | / """" """" # #= #??????????????? | | ##### """" """" # [ #??????????????? | | # """" """" + ! % ] #??????????????? | | ! # """" """" # = #??????????????? | | #= """" """" #! % #??????????????? | | * # ## # #??????????????? | | ##### ## = #######+###????? | | ????# ! ## = ! ??? | | ??? + ## !*= ??? | | ???##+#####+####### h !@! "??? | | ???## ##??# #?????# %h ! ! ###+##????????????? | | ??? # ##??# #?????# ; [ ; ?????????????? | | ? # ##### ##???####;;;;;;;;;# "" #?????????? | | # ##### #% ; # ; ###??""" #?????????? | | """ + + ! "T" #### ## T??????" #?????????? | | """ # ##### # ##?###? #???????=!#?????????? | | ""? # #####%##########????? ##???????????????????? | | ??? # #####+####??????????? ????????????????????? | | ??### ## ##????????????#????????????????????? | | ##### ## """ ##?????????????????????????????????? | | #### % # "Y" ##?????????????????????????????????? | | " " % ##?????????????????????????????????? | | #### * # ! ##?????????????????????????????????? | | ##### ## !##?????????????????????????????????? | | ??### ##########?????????????????????????????????? | | ???## ##########?????????????????????????????????? | | ???##+##?????????????????????????????????????????? | | ?## ##??????????????????????????????????????? | | ?##* ##??????????????????????????????????????? | | ?## ##??????????????????????????????????????? | | ?## """ ##??????????????????????????????????????? | | ?## """ ##??????????????????????????????????????? | | ?## """ ##??????????????????????????????????????? | | ?##########??????????????????????????????????????? | +----------------------------------------------------+ Best States ------------- Heat Dissipation 75 Energy Generation 19 Energy Capacity 500 Matter Stores 300 Matter Capacity 300 Sight Range 22 Robot Scan Range 16 Terrain Scan Density 10 Armor Coverage 825 Resistance: KI 25 Evasion (%) 44 Targeting Accuracy 6 Recoil Reduction 3 Item Schematics ----------------- Huge Storage Unit | -10/Materials | Hacked Robot Schematics ------------------ None Fabricated ------------ Nothing Repaired ---------- Nothing Studied --------- Arm. Wheel | -9/Materials | Hacked Wheel | -6/Factory | Hacked Alien Tech Used ----------------- None Achievements -------------- None Challenges ------------ None Game ------ Seed FrostSpacefoldChainsword Manual? 0 Play Time 01:02:12 Cumulative 230.7 hours Start 2026.08.10 @ 16:17:16 End 2026.08.10 @ 17:22:44 Sessions 1 Manual Loads 0 Difficulty Rogue Special Mode None Game No. 283 Rogue 283 Adventurer 0 Explorer 0 Win Type - Total 6 Types 6/0/0/0/0/0/0/0/0/0 Lore% 80 Gallery% 63 Achievement% 51 Wizard Run 0 Options --------- Layout 0 ASCII 0 Keyboard 0 Movement Numpad Keybinds 0 Fullscreen 1 Font 18/Terminus Map View 76x50 Zoom Use 0% Tactical HUD 1 Map Filters NONE Filters NONE Steam 1 RUN: c01d82fc-f24f-4205-b7db-d3d3ef7c6bb9